[Event "Early-Titled-Tuesday-Blitz-February-13-2024"]
[Site "Chess.com"]
[Date "2024.02.13"]
[Round "3"]
[White "klimkoj"]
[Black "maksimys18"]
[Result "1-0"]
[WhiteElo "2932"]
[BlackElo "2534"]
[TimeControl "180+1"]
[EndTime "8:33:03 PST"]
[Termination "klimkoj won on time"]

1. e4 {[%clk 0:03:00.9]} 1... e6 {[%clk 0:03:00.9]} 2. d4 {[%clk 0:02:55.5]}
2... d5 {[%clk 0:02:59]} 3. e5 {[%clk 0:02:56.4]} 3... c5 {[%clk 0:02:57.7]} 4.
c3 {[%clk 0:02:56.1]} 4... Qb6 {[%clk 0:02:56.8]} 5. Nf3 {[%clk 0:02:54.7]} 5...
Bd7 {[%clk 0:02:55.9]} 6. a4 {[%clk 0:02:51.2]} 6... Nc6 {[%clk 0:02:53.1]} 7.
Be2 {[%clk 0:02:48.8]} 7... Rc8 {[%clk 0:02:52]} 8. O-O {[%clk 0:02:48.4]} 8...
Nh6 {[%clk 0:02:51.4]} 9. dxc5 {[%clk 0:02:43.2]} 9... Bxc5 {[%clk 0:02:45.6]}
10. b4 {[%clk 0:02:38.9]} 10... Be7 {[%clk 0:02:44.3]} 11. Na3 {[%clk 0:02:29]}
11... Nf5 {[%clk 0:02:40.9]} 12. Bd3 {[%clk 0:02:16.8]} 12... O-O {[%clk
0:02:37.8]} 13. Bxf5 {[%clk 0:02:10.9]} 13... exf5 {[%clk 0:02:37.3]} 14. Be3
{[%clk 0:02:09.9]} 14... Qc7 {[%clk 0:02:33.9]} 15. Nb5 {[%clk 0:02:09.3]} 15...
Qb8 {[%clk 0:02:30.9]} 16. Nd6 {[%clk 0:02:04.6]} 16... Bxd6 {[%clk 0:02:28]}
17. exd6 {[%clk 0:02:05.5]} 17... Be6 {[%clk 0:02:18.6]} 18. Bf4 {[%clk
0:02:04.9]} 18... Rcd8 {[%clk 0:02:11.7]} 19. h4 {[%clk 0:02:02.7]} 19... b6
{[%clk 0:02:01.8]} 20. Nd4 {[%clk 0:02:02.1]} 20... Nxd4 {[%clk 0:01:59.4]} 21.
Qxd4 {[%clk 0:02:03]} 21... Qb7 {[%clk 0:01:56.8]} 22. a5 {[%clk 0:02:02.9]}
22... Rc8 {[%clk 0:01:49.4]} 23. Be5 {[%clk 0:01:54.9]} 23... Rc4 {[%clk
0:01:43.5]} 24. Qd2 {[%clk 0:01:53.8]} 24... Rxh4 {[%clk 0:01:39.4]} 25. Bxg7
{[%clk 0:01:52.2]} 25... Rg4 {[%clk 0:01:22.2]} 26. Bxf8 {[%clk 0:01:48.8]}
26... Kxf8 {[%clk 0:01:21.7]} 27. f3 {[%clk 0:01:48.4]} 27... Rg6 {[%clk
0:01:10.6]} 28. axb6 {[%clk 0:01:43.9]} 28... axb6 {[%clk 0:01:08.2]} 29. Qd4
{[%clk 0:01:41.5]} 29... Ke8 {[%clk 0:00:49.9]} 30. Qh8+ {[%clk 0:01:41.3]}
30... Kd7 {[%clk 0:00:47.2]} 31. Ra8 {[%clk 0:01:40.9]} 31... Kxd6 {[%clk
0:00:44.2]} 32. Qd8+ {[%clk 0:01:39.7]} 32... Ke5 {[%clk 0:00:41.9]} 33. Raa1
{[%clk 0:01:32.4]} 33... f4 {[%clk 0:00:37.7]} 34. Rad1 {[%clk 0:01:27.8]} 34...
b5 {[%clk 0:00:30.7]} 35. Rd4 {[%clk 0:01:26.6]} 35... Kf5 {[%clk 0:00:23.7]}
36. Qh4 {[%clk 0:01:25.3]} 36... Qc7 {[%clk 0:00:22]} 37. Qxh7 {[%clk
0:01:22.9]} 37... Qxc3 {[%clk 0:00:18.1]} 38. Rfd1 {[%clk 0:01:10.8]} 38... Qe3+
{[%clk 0:00:17.7]} 39. Kf1 {[%clk 0:01:05.4]} 39... Kf6 {[%clk 0:00:17.7]} 40.
Qh4+ {[%clk 0:01:04.2]} 40... Kg7 {[%clk 0:00:17.6]} 41. Qxf4 {[%clk 0:01:01.3]}
41... Qc3 {[%clk 0:00:17.3]} 42. Rc1 {[%clk 0:00:52.4]} 42... Qb2 {[%clk
0:00:08.6]} 43. Qd2 {[%clk 0:00:25.3]} 43... Qa3 {[%clk 0:00:08.1]} 44. Qc3
{[%clk 0:00:20.4]} 44... Qa7 {[%clk 0:00:07.1]} 45. Rg4+ {[%clk 0:00:18.3]}
45... Kh7 {[%clk 0:00:06.6]} 46. Rh4+ {[%clk 0:00:18.1]} 46... Rh6 {[%clk
0:00:06.6]} 47. Rxh6+ {[%clk 0:00:18.3]} 47... Kxh6 {[%clk 0:00:07.5]} 48. Qf6+
{[%clk 0:00:18.7]} 48... Kh7 {[%clk 0:00:07.2]} 49. Re1 {[%clk 0:00:14.5]} 49...
d4 {[%clk 0:00:06.8]} 50. Re5 {[%clk 0:00:13.4]} 50... Qa1+ {[%clk 0:00:04.6]}
51. Kf2 {[%clk 0:00:13.4]} 51... Qh1 {[%clk 0:00:02.7]} 52. Re4 {[%clk
0:00:06.5]} 1-0

[Event "Early-Titled-Tuesday-Blitz-February-13-2024"]
[Site "Chess.com"]
[Date "2024.02.13"]
[Round "3"]
[White "guillembaches"]
[Black "ClaudiaSof"]
[Result "0-1"]
[WhiteElo "2565"]
[BlackElo "2320"]
[TimeControl "180+1"]
[EndTime "8:33:04 PST"]
[Termination "ClaudiaSof won on time"]

1. d4 {[%clk 0:03:00.9]} 1... d5 {[%clk 0:02:56.8]} 2. Nf3 {[%clk 0:03:01.5]}
2... Nf6 {[%clk 0:02:54.6]} 3. c4 {[%clk 0:03:01.5]} 3... e6 {[%clk 0:02:54.3]}
4. cxd5 {[%clk 0:03:01.2]} 4... exd5 {[%clk 0:02:53.7]} 5. Qc2 {[%clk
0:03:01.5]} 5... c6 {[%clk 0:02:53.2]} 6. Bg5 {[%clk 0:02:53.3]} 6... Be7 {[%clk
0:02:52.8]} 7. e3 {[%clk 0:02:52.8]} 7... O-O {[%clk 0:02:50.4]} 8. Bd3 {[%clk
0:02:52.1]} 8... h6 {[%clk 0:02:47.4]} 9. Bh4 {[%clk 0:02:50.7]} 9... Re8 {[%clk
0:02:44.1]} 10. h3 {[%clk 0:02:47.7]} 10... Ne4 {[%clk 0:02:41.6]} 11. Bxe7
{[%clk 0:02:45.8]} 11... Qxe7 {[%clk 0:02:39.8]} 12. O-O {[%clk 0:02:45.7]}
12... Nd7 {[%clk 0:02:38.9]} 13. Nbd2 {[%clk 0:02:37.8]} 13... Ndf6 {[%clk
0:02:36.6]} 14. Ne5 {[%clk 0:02:33.3]} 14... Bd7 {[%clk 0:02:27.6]} 15. Nxe4
{[%clk 0:02:11.6]} 15... Nxe4 {[%clk 0:02:12.3]} 16. Bxe4 {[%clk 0:02:00.8]}
16... dxe4 {[%clk 0:02:10]} 17. b4 {[%clk 0:01:48.7]} 17... Bf5 {[%clk
0:01:50.2]} 18. f3 {[%clk 0:01:32.1]} 18... f6 {[%clk 0:01:36.4]} 19. fxe4
{[%clk 0:01:17.8]} 19... Bxe4 {[%clk 0:01:16.8]} 20. Qxe4 {[%clk 0:00:55.6]}
20... fxe5 {[%clk 0:01:16.1]} 21. d5 {[%clk 0:00:55.7]} 21... Rf8 {[%clk
0:00:59.4]} 22. dxc6 {[%clk 0:00:49.4]} 22... bxc6 {[%clk 0:00:57.9]} 23. Rxf8+
{[%clk 0:00:44.8]} 23... Rxf8 {[%clk 0:00:54.5]} 24. Rc1 {[%clk 0:00:44]} 24...
Qf7 {[%clk 0:00:38.3]} 25. a3 {[%clk 0:00:34.9]} 25... Qf2+ {[%clk 0:00:31.5]}
26. Kh2 {[%clk 0:00:34.2]} 26... Qb2 {[%clk 0:00:20.6]} 27. Rxc6 {[%clk
0:00:32.7]} 27... Qxa3 {[%clk 0:00:20.6]} 28. Rc7 {[%clk 0:00:29]} 28... Qa2
{[%clk 0:00:14.6]} 29. Qc4+ {[%clk 0:00:17.2]} 29... Qxc4 {[%clk 0:00:14]} 30.
Rxc4 {[%clk 0:00:16.5]} 30... Rb8 {[%clk 0:00:14.6]} 31. Kg3 {[%clk 0:00:15.8]}
31... Kf7 {[%clk 0:00:14.3]} 32. Kf3 {[%clk 0:00:16.1]} 32... Ke6 {[%clk
0:00:13.7]} 33. Ke4 {[%clk 0:00:16.4]} 33... Rb5 {[%clk 0:00:13]} 34. g4 {[%clk
0:00:16]} 34... g6 {[%clk 0:00:12.5]} 35. h4 {[%clk 0:00:15.7]} 35... Rb6 {[%clk
0:00:12]} 36. g5 {[%clk 0:00:15.3]} 36... hxg5 {[%clk 0:00:11.1]} 37. hxg5
{[%clk 0:00:15.2]} 37... a6 {[%clk 0:00:10.5]} 38. Kf3 {[%clk 0:00:13.2]} 38...
Kf5 {[%clk 0:00:09.7]} 39. Rc5 {[%clk 0:00:08.4]} 39... Rxb4 {[%clk 0:00:08.2]}
40. Ra5 {[%clk 0:00:08.2]} 40... Kxg5 {[%clk 0:00:06.6]} 41. Rxe5+ {[%clk
0:00:06.6]} 41... Kf6 {[%clk 0:00:06.7]} 42. Ra5 {[%clk 0:00:06.8]} 42... Rb6
{[%clk 0:00:06.2]} 43. Kf4 {[%clk 0:00:06.9]} 43... g5+ {[%clk 0:00:04.3]} 44.
Kf3 {[%clk 0:00:07]} 44... Kg6 {[%clk 0:00:03.3]} 45. e4 {[%clk 0:00:07]} 45...
Kh5 {[%clk 0:00:03.1]} 46. e5 {[%clk 0:00:06.9]} 46... Kh4 {[%clk 0:00:03]} 47.
Ke4 {[%clk 0:00:06.7]} 47... g4 {[%clk 0:00:02.8]} 48. Kf5 {[%clk 0:00:06.9]}
48... g3 {[%clk 0:00:02.4]} 49. e6 {[%clk 0:00:06.8]} 49... Kh3 {[%clk
0:00:02.2]} 50. e7 {[%clk 0:00:04.7]} 50... Rb8 {[%clk 0:00:02.2]} 51. Ke6
{[%clk 0:00:03.9]} 51... g2 {[%clk 0:00:01.5]} 52. Ra1 {[%clk 0:00:03.6]} 52...
Kh2 {[%clk 0:00:01.8]} 53. Kf7 {[%clk 0:00:03.7]} 53... g1=Q {[%clk 0:00:01.6]}
54. Rxg1 {[%clk 0:00:02.8]} 54... Kxg1 {[%clk 0:00:02.2]} 55. e8=Q {[%clk
0:00:03.5]} 55... Rxe8 {[%clk 0:00:02.5]} 56. Kxe8 {[%clk 0:00:04.4]} 56... a5
{[%clk 0:00:02.3]} 57. Kd7 {[%clk 0:00:05.3]} 57... a4 {[%clk 0:00:03]} 0-1

[Event "Early-Titled-Tuesday-Blitz-February-13-2024"]
[Site "Chess.com"]
[Date "2024.02.13"]
[Round "3"]
[White "Anton_Demchenko"]
[Black "MyDream003"]
[Result "1-0"]
[WhiteElo "2937"]
[BlackElo "2712"]
[TimeControl "180+1"]
[EndTime "8:33:05 PST"]
[Termination "Anton_Demchenko won on time"]

1. e4 {[%clk 0:02:55.4]} 1... e5 {[%clk 0:02:54.4]} 2. Nf3 {[%clk 0:02:53.6]}
2... Nc6 {[%clk 0:02:54.6]} 3. Bc4 {[%clk 0:02:53.1]} 3... Bc5 {[%clk
0:02:54.3]} 4. d3 {[%clk 0:02:53.4]} 4... Nf6 {[%clk 0:02:54.5]} 5. Bg5 {[%clk
0:02:53.7]} 5... h6 {[%clk 0:02:52.3]} 6. Bh4 {[%clk 0:02:54.3]} 6... Be7 {[%clk
0:02:52.4]} 7. Bg3 {[%clk 0:02:54.9]} 7... d6 {[%clk 0:02:52.8]} 8. a4 {[%clk
0:02:55.5]} 8... a5 {[%clk 0:02:52.7]} 9. c3 {[%clk 0:02:52.6]} 9... O-O {[%clk
0:02:48.6]} 10. Nbd2 {[%clk 0:02:48.5]} 10... Be6 {[%clk 0:02:32.9]} 11. Bxe6
{[%clk 0:02:48]} 11... fxe6 {[%clk 0:02:33.8]} 12. O-O {[%clk 0:02:47.1]} 12...
Qd7 {[%clk 0:02:21]} 13. Qb3 {[%clk 0:02:42.6]} 13... b6 {[%clk 0:02:20.3]} 14.
Qb5 {[%clk 0:02:42.7]} 14... Nh5 {[%clk 0:02:08.3]} 15. d4 {[%clk 0:02:41]}
15... Nxg3 {[%clk 0:02:08]} 16. hxg3 {[%clk 0:02:40.6]} 16... Bf6 {[%clk
0:01:54]} 17. Rac1 {[%clk 0:01:53.8]} 17... Rad8 {[%clk 0:01:49.4]} 18. Nb3
{[%clk 0:01:26.9]} 18... exd4 {[%clk 0:01:00.3]} 19. Nbxd4 {[%clk 0:01:18.1]}
19... Bxd4 {[%clk 0:00:54.5]} 20. Nxd4 {[%clk 0:01:12.4]} 20... Nxd4 {[%clk
0:00:51.4]} 21. cxd4 {[%clk 0:01:13.3]} 21... Rf7 {[%clk 0:00:15.7]} 22. Rc3
{[%clk 0:01:10.5]} 22... Rdf8 {[%clk 0:00:10.8]} 23. Qxd7 {[%clk 0:01:05.5]}
23... Rxd7 {[%clk 0:00:11.7]} 24. Rd1 {[%clk 0:01:01.3]} 24... Rff7 {[%clk
0:00:12.1]} 25. f3 {[%clk 0:00:59.8]} 25... Kf8 {[%clk 0:00:12.6]} 26. Kf2
{[%clk 0:01:00.2]} 26... Ke8 {[%clk 0:00:13.1]} 27. Ke3 {[%clk 0:00:58.6]} 27...
Kd8 {[%clk 0:00:13.5]} 28. g4 {[%clk 0:00:59.3]} 28... Rf6 {[%clk 0:00:12.9]}
29. Rh1 {[%clk 0:00:57.7]} 29... Rdf7 {[%clk 0:00:12.5]} 30. Rh5 {[%clk
0:00:56.9]} 30... Rg6 {[%clk 0:00:12.7]} 31. Rc4 {[%clk 0:00:52.7]} 31... Kd7
{[%clk 0:00:13.1]} 32. b4 {[%clk 0:00:50.2]} 32... axb4 {[%clk 0:00:14]} 33.
Rxb4 {[%clk 0:00:50.9]} 33... Rf8 {[%clk 0:00:14.3]} 34. a5 {[%clk 0:00:51]}
34... bxa5 {[%clk 0:00:15.2]} 35. Rxa5 {[%clk 0:00:51.1]} 35... Rc8 {[%clk
0:00:15.9]} 36. Rb7 {[%clk 0:00:42.3]} 36... Rf6 {[%clk 0:00:14.2]} 37. f4
{[%clk 0:00:30.5]} 37... Rf7 {[%clk 0:00:12.4]} 38. g3 {[%clk 0:00:24.8]} 38...
Re7 {[%clk 0:00:12.1]} 39. g5 {[%clk 0:00:22.6]} 39... hxg5 {[%clk 0:00:12.1]}
40. Rxg5 {[%clk 0:00:23.2]} 40... Rf7 {[%clk 0:00:12.3]} 41. Ra5 {[%clk
0:00:22.4]} 41... Kc6 {[%clk 0:00:11.9]} 42. Rb2 {[%clk 0:00:21.4]} 42... Rff8
{[%clk 0:00:10]} 43. Rg5 {[%clk 0:00:18.6]} 43... Rf7 {[%clk 0:00:09.4]} 44. Ra5
{[%clk 0:00:16]} 44... Kd7 {[%clk 0:00:09.2]} 45. Rc2 {[%clk 0:00:14.3]} 45...
Rb8 {[%clk 0:00:08]} 46. Rc3 {[%clk 0:00:13.3]} 46... Rb7 {[%clk 0:00:06.6]} 47.
g4 {[%clk 0:00:13.3]} 47... Rb8 {[%clk 0:00:06.1]} 48. f5 {[%clk 0:00:13.7]}
48... Rh8 {[%clk 0:00:05.8]} 49. Rxc7+ {[%clk 0:00:12.3]} 49... Kxc7 {[%clk
0:00:03.6]} 50. Ra7+ {[%clk 0:00:12.9]} 50... Kc6 {[%clk 0:00:03.6]} 51. Rxf7
{[%clk 0:00:13.8]} 51... e5 {[%clk 0:00:02.1]} 52. dxe5 {[%clk 0:00:10]} 52...
dxe5 {[%clk 0:00:03]} 53. Rxg7 {[%clk 0:00:10.8]} 53... Rh3+ {[%clk 0:00:03.3]}
54. Kf2 {[%clk 0:00:11.5]} 54... Kd6 {[%clk 0:00:04.2]} 55. g5 {[%clk
0:00:11.6]} 55... Kc5 {[%clk 0:00:04]} 56. Rd7 {[%clk 0:00:11]} 1-0

[Event "Early-Titled-Tuesday-Blitz-February-13-2024"]
[Site "Chess.com"]
[Date "2024.02.13"]
[Round "3"]
[White "marik_spb"]
[Black "arturdailima"]
[Result "1/2-1/2"]
[WhiteElo "2489"]
[BlackElo "2396"]
[TimeControl "180+1"]
[EndTime "8:33:06 PST"]
[Termination "Game drawn - insufficient material"]

1. e4 {[%clk 0:03:00.9]} 1... e5 {[%clk 0:01:45.2]} 2. Nf3 {[%clk 0:02:59.9]}
2... Nc6 {[%clk 0:01:44.7]} 3. Bc4 {[%clk 0:02:59.3]} 3... Nf6 {[%clk
0:01:44.8]} 4. d4 {[%clk 0:02:54]} 4... exd4 {[%clk 0:01:45.2]} 5. O-O {[%clk
0:02:54.1]} 5... Nxe4 {[%clk 0:01:41.4]} 6. Re1 {[%clk 0:02:54.3]} 6... d5
{[%clk 0:01:42.3]} 7. Bxd5 {[%clk 0:02:54.7]} 7... Qxd5 {[%clk 0:01:43.2]} 8.
Nc3 {[%clk 0:02:55.4]} 8... Qd7 {[%clk 0:01:41]} 9. Nxe4 {[%clk 0:02:55.3]} 9...
Be7 {[%clk 0:01:41.6]} 10. Bg5 {[%clk 0:02:35.5]} 10... O-O {[%clk 0:01:40.5]}
11. Bxe7 {[%clk 0:02:35.5]} 11... Qxe7 {[%clk 0:01:38]} 12. Nxd4 {[%clk
0:02:33.8]} 12... Bd7 {[%clk 0:01:30.4]} 13. c3 {[%clk 0:02:16.3]} 13... Rad8
{[%clk 0:01:29]} 14. Qh5 {[%clk 0:02:10]} 14... h6 {[%clk 0:01:21.1]} 15. Nc5
{[%clk 0:01:54.6]} 15... Qf6 {[%clk 0:01:16.1]} 16. Nxb7 {[%clk 0:01:31.3]}
16... Nxd4 {[%clk 0:01:07.7]} 17. Nxd8 {[%clk 0:01:12.1]} 17... Nc2 {[%clk
0:01:06.7]} 18. Nb7 {[%clk 0:00:51.4]} 18... Nxa1 {[%clk 0:01:05.8]} 19. Rxa1
{[%clk 0:00:50.9]} 19... Qb6 {[%clk 0:00:49.5]} 20. Nc5 {[%clk 0:00:48]} 20...
Qxb2 {[%clk 0:00:49.8]} 21. Qd1 {[%clk 0:00:41.6]} 21... Bc6 {[%clk 0:00:47.9]}
22. Qc1 {[%clk 0:00:40.7]} 22... Qe2 {[%clk 0:00:37.8]} 23. Qd1 {[%clk 0:00:34]}
23... Qc4 {[%clk 0:00:36]} 24. Qd4 {[%clk 0:00:31.8]} 24... Qxd4 {[%clk
0:00:34.7]} 25. cxd4 {[%clk 0:00:32.7]} 25... Rb8 {[%clk 0:00:27.4]} 26. Rc1
{[%clk 0:00:22]} 26... Bd5 {[%clk 0:00:23.6]} 27. h4 {[%clk 0:00:16.8]} 27...
Rb2 {[%clk 0:00:22.3]} 28. Nd3 {[%clk 0:00:14.3]} 28... Rd2 {[%clk 0:00:20.4]}
29. Nf4 {[%clk 0:00:12.5]} 29... Rxd4 {[%clk 0:00:19.3]} 30. Nxd5 {[%clk
0:00:10]} 30... Rxd5 {[%clk 0:00:20.2]} 31. Rxc7 {[%clk 0:00:10.4]} 31... Ra5
{[%clk 0:00:19.9]} 32. Rc2 {[%clk 0:00:10.6]} 32... Ra4 {[%clk 0:00:20.1]} 33.
g3 {[%clk 0:00:10.8]} 33... g5 {[%clk 0:00:19.4]} 34. hxg5 {[%clk 0:00:09.6]}
34... hxg5 {[%clk 0:00:20.3]} 35. Kf1 {[%clk 0:00:10.3]} 35... Kg7 {[%clk
0:00:20.8]} 36. Ke2 {[%clk 0:00:11]} 36... Ra3 {[%clk 0:00:21.4]} 37. Kd2 {[%clk
0:00:11.4]} 37... Kg6 {[%clk 0:00:20.9]} 38. Kc1 {[%clk 0:00:11.8]} 38... f5
{[%clk 0:00:19.2]} 39. Kb2 {[%clk 0:00:12.2]} 39... Ra5 {[%clk 0:00:18.9]} 40.
Rc4 {[%clk 0:00:10.6]} 40... Kh5 {[%clk 0:00:18.9]} 41. a4 {[%clk 0:00:10.7]}
41... Re5 {[%clk 0:00:18.4]} 42. Rc2 {[%clk 0:00:05.9]} 42... Re4 {[%clk
0:00:16.5]} 43. Kb3 {[%clk 0:00:05.8]} 43... a5 {[%clk 0:00:16.7]} 44. Rc3
{[%clk 0:00:05.5]} 44... Rb4+ {[%clk 0:00:16.3]} 45. Ka3 {[%clk 0:00:05.5]}
45... Kg4 {[%clk 0:00:16.8]} 46. Rc5 {[%clk 0:00:05.7]} 46... f4 {[%clk
0:00:15.8]} 47. gxf4 {[%clk 0:00:05.2]} 47... gxf4 {[%clk 0:00:16.7]} 48. Rxa5
{[%clk 0:00:05.3]} 48... Rb1 {[%clk 0:00:16.9]} 49. Rc5 {[%clk 0:00:02.6]} 49...
Kf3 {[%clk 0:00:16.4]} 50. Rc2 {[%clk 0:00:02.8]} 50... Ra1+ {[%clk 0:00:14]}
51. Kb4 {[%clk 0:00:03]} 51... Kg2 {[%clk 0:00:12.7]} 52. a5 {[%clk 0:00:02.8]}
52... f3 {[%clk 0:00:11.3]} 53. Kb5 {[%clk 0:00:03.2]} 53... Rb1+ {[%clk
0:00:11.8]} 54. Kc6 {[%clk 0:00:03.5]} 54... Ra1 {[%clk 0:00:10.4]} 55. Kb6
{[%clk 0:00:04.1]} 55... Rb1+ {[%clk 0:00:11]} 56. Ka7 {[%clk 0:00:04.6]} 56...
Rf1 {[%clk 0:00:10.7]} 57. a6 {[%clk 0:00:05]} 57... Rxf2 {[%clk 0:00:11.6]} 58.
Rxf2+ {[%clk 0:00:02.3]} 58... Kxf2 {[%clk 0:00:12.5]} 59. Kb7 {[%clk 0:00:03]}
59... Ke2 {[%clk 0:00:12.6]} 60. a7 {[%clk 0:00:03.9]} 60... f2 {[%clk
0:00:13.5]} 61. a8=Q {[%clk 0:00:04.6]} 61... f1=Q {[%clk 0:00:14.4]} 62. Qa6+
{[%clk 0:00:05.1]} 62... Ke1 {[%clk 0:00:14.7]} 63. Qxf1+ {[%clk 0:00:05.6]}
63... Kxf1 {[%clk 0:00:15.6]} 1/2-1/2

[Event "Early-Titled-Tuesday-Blitz-February-13-2024"]
[Site "Chess.com"]
[Date "2024.02.13"]
[Round "3"]
[White "MiguelEduardoGB"]
[Black "GrotBchess"]
[Result "1/2-1/2"]
[WhiteElo "2152"]
[BlackElo "2364"]
[TimeControl "180+1"]
[EndTime "8:33:07 PST"]
[Termination "Game drawn by repetition"]

1. Nf3 {[%clk 0:03:00.9]} 1... Nf6 {[%clk 0:02:59.1]} 2. e3 {[%clk 0:03:00.4]}
2... g6 {[%clk 0:02:59.2]} 3. b3 {[%clk 0:03:00.8]} 3... Bg7 {[%clk 0:02:59.3]}
4. Bb2 {[%clk 0:03:01.3]} 4... O-O {[%clk 0:02:59.5]} 5. d4 {[%clk 0:03:01.4]}
5... c5 {[%clk 0:02:58]} 6. Nbd2 {[%clk 0:03:00.9]} 6... d6 {[%clk 0:02:56.6]}
7. Be2 {[%clk 0:03:00]} 7... Nbd7 {[%clk 0:02:56.5]} 8. O-O {[%clk 0:02:59.9]}
8... b6 {[%clk 0:02:56.5]} 9. c4 {[%clk 0:03:00]} 9... Bb7 {[%clk 0:02:56.9]}
10. d5 {[%clk 0:03:00.2]} 10... Re8 {[%clk 0:02:55]} 11. h3 {[%clk 0:02:45.2]}
11... Qc7 {[%clk 0:02:54.4]} 12. Re1 {[%clk 0:02:39.8]} 12... Rad8 {[%clk
0:02:54.3]} 13. Qc2 {[%clk 0:02:37.1]} 13... e6 {[%clk 0:02:54.1]} 14. dxe6
{[%clk 0:02:35.5]} 14... Rxe6 {[%clk 0:02:53.6]} 15. Ng5 {[%clk 0:02:32.4]}
15... Re7 {[%clk 0:02:49]} 16. Rad1 {[%clk 0:02:24.2]} 16... d5 {[%clk
0:02:45.2]} 17. cxd5 {[%clk 0:02:19.6]} 17... Bxd5 {[%clk 0:02:46.1]} 18. Nc4
{[%clk 0:02:16.8]} 18... Bc6 {[%clk 0:02:42.1]} 19. Bf3 {[%clk 0:01:58.5]} 19...
Bxf3 {[%clk 0:02:33.7]} 20. Nxf3 {[%clk 0:01:58.2]} 20... Nf8 {[%clk 0:02:28.1]}
21. Nce5 {[%clk 0:01:24]} 21... N8d7 {[%clk 0:02:15.7]} 22. Nxd7 {[%clk
0:01:14.6]} 22... Rexd7 {[%clk 0:02:16.6]} 23. Rxd7 {[%clk 0:01:13.9]} 23...
Qxd7 {[%clk 0:02:17.5]} 24. Qc4 {[%clk 0:01:07.2]} 24... Qd5 {[%clk 0:02:08.2]}
25. Qh4 {[%clk 0:00:56.8]} 25... Ne4 {[%clk 0:01:45.6]} 26. Bxg7 {[%clk
0:00:53.6]} 26... Kxg7 {[%clk 0:01:46.5]} 27. Qe7 {[%clk 0:00:36.6]} 27... Rd7
{[%clk 0:01:43.2]} 28. Qe8 {[%clk 0:00:36.6]} 28... Nf6 {[%clk 0:01:27.5]} 29.
Qb8 {[%clk 0:00:33.8]} 29... h6 {[%clk 0:01:17.1]} 30. Qf4 {[%clk 0:00:33.2]}
30... Ne4 {[%clk 0:01:00.7]} 31. Qb8 {[%clk 0:00:32]} 31... Nd2 {[%clk
0:00:57.2]} 32. Nh2 {[%clk 0:00:16.9]} 32... h5 {[%clk 0:00:51.9]} 33. Qf4
{[%clk 0:00:15.4]} 33... Qe4 {[%clk 0:00:47]} 34. Qg3 {[%clk 0:00:12]} 34... a5
{[%clk 0:00:37]} 35. Rd1 {[%clk 0:00:11.2]} 35... Nf3+ {[%clk 0:00:34.7]} 36.
Nxf3 {[%clk 0:00:10.1]} 36... Rxd1+ {[%clk 0:00:34.3]} 37. Kh2 {[%clk 0:00:11]}
37... Qe6 {[%clk 0:00:28.9]} 38. Qf4 {[%clk 0:00:10.6]} 38... Qf6 {[%clk
0:00:27.8]} 39. Qc7 {[%clk 0:00:09.6]} 39... Ra1 {[%clk 0:00:27]} 40. a4 {[%clk
0:00:09.1]} 40... Ra2 {[%clk 0:00:26.5]} 41. Kg1 {[%clk 0:00:08.6]} 41... Rb2
{[%clk 0:00:25.4]} 42. h4 {[%clk 0:00:06.8]} 42... Rxb3 {[%clk 0:00:24.7]} 43.
Ng5 {[%clk 0:00:06.2]} 43... Rb2 {[%clk 0:00:18.5]} 44. Qg3 {[%clk 0:00:06.3]}
44... Rb1+ {[%clk 0:00:17.8]} 45. Kh2 {[%clk 0:00:06.5]} 45... c4 {[%clk
0:00:17.8]} 46. Ne4 {[%clk 0:00:06.5]} 46... Qe6 {[%clk 0:00:17.2]} 47. Ng5
{[%clk 0:00:06.2]} 47... Qd5 {[%clk 0:00:17.1]} 48. e4 {[%clk 0:00:06]} 48...
Qc5 {[%clk 0:00:13.9]} 49. e5 {[%clk 0:00:05.7]} 49... Qe7 {[%clk 0:00:13.7]}
50. e6 {[%clk 0:00:04.9]} 50... f6 {[%clk 0:00:13.2]} 51. Nf3 {[%clk 0:00:02.2]}
51... Qxe6 {[%clk 0:00:12.7]} 52. Qc7+ {[%clk 0:00:02.2]} 52... Qf7 {[%clk
0:00:12.7]} 53. Qc6 {[%clk 0:00:01.8]} 53... Rb2 {[%clk 0:00:12]} 54. Nd4 {[%clk
0:00:02.7]} 54... Rxf2 {[%clk 0:00:11.6]} 55. Ne6+ {[%clk 0:00:03.2]} 55... Kh7
{[%clk 0:00:11.8]} 56. Qe4 {[%clk 0:00:02.7]} 56... f5 {[%clk 0:00:10.7]} 57.
Ng5+ {[%clk 0:00:02.5]} 57... Kg8 {[%clk 0:00:09.1]} 58. Qa8+ {[%clk 0:00:02.8]}
58... Qf8 {[%clk 0:00:09.3]} 59. Qd5+ {[%clk 0:00:03.5]} 59... Kg7 {[%clk
0:00:09.2]} 60. Qd7+ {[%clk 0:00:03.8]} 60... Kf6 {[%clk 0:00:08.1]} 61. Qe6+
{[%clk 0:00:03.7]} 61... Kg7 {[%clk 0:00:07.7]} 62. Qd7+ {[%clk 0:00:04.3]}
62... Kf6 {[%clk 0:00:07.8]} 63. Qe6+ {[%clk 0:00:04.8]} 63... Kg7 {[%clk
0:00:08]} 64. Qd7+ {[%clk 0:00:05.4]} 1/2-1/2